fUST/lending_fUST_20240812
["ID","MTS","AMOUNT","RATE_DAILY","PERIOD"]
[334659312,1723410443695,-2455.65645409,0.00019167,2]
[334659313,1723410443716,-6867.47068751,0.0002062,2]
[334659317,1723410450096,-494.6780177,0.00019547,2]
[334659318,1723410450119,-1526.70374912,0.0002062,2]
[334659319,1723410452156,-384.1459671,0.0002062,2]
[334659320,1723410452180,-694.1882093,0.00020629,2]
[334659321,1723410452206,-151.0,0.00020637,2]
[334659322,1723410452233,-151.0,0.00020637,2]
[334659323,1723410452259,-694.1882093,0.00020675,2]
[334659324,1723410452281,-458.88143876,0.0002071,2]
[334659325,1723410452304,-7775.25187654,0.00020711,2]
[334659398,1723410633447,-1413.0,0.00019296,2]
[334659400,1723410633457,-342.34390176,0.00019477,2]
[334659402,1723410633466,-154.81863612,0.00019477,2]
[334659404,1723410633475,-176.3835269,0.00019547,2]
[334659406,1723410633485,-173.856206,0.00019851,2]
[334659408,1723410633495,-300.0,0.00019999,2]
[334659410,1723410633505,-402.92036635,0.0002,2]
[334659419,1723410633545,-215.57142109,0.0002,2]
[334659431,1723410639195,-774.45172174,0.0002,2]
[334659432,1723410639204,-156.5036659,0.0002,2]
[334659433,1723410639213,-214.45080136,0.0002,2]
[334659435,1723410639287,-122.03222907,0.0002,2]
[334659437,1723410639297,-294.37791673,0.0002,2]
[334659438,1723410639306,-151.56653755,0.0002067,2]
[334659439,1723410639315,-10496.61498137,0.00020711,2]
[334659440,1723410639324,-1627.2392472,0.00020711,2]
[334659441,1723410639334,-4185.35085903,0.00020711,2]
[334659442,1723410639343,-13225.5638548,0.00020711,3]
[334659470,1723410641008,-1522.03356262,0.00020711,3]
[334659487,1723410642106,-3124.56724109,0.00020711,3]
[334659489,1723410642120,-7221.48,0.00020711,3]
[334659659,1723410643723,-5323.95059977,0.00020711,3]
[334659671,1723410643837,-4328.83,0.00020711,3]
[334659759,1723410646885,-649.2939,0.00020711,3]
[334659760,1723410647651,-44.78419349,0.00020711,3]
[334659761,1723410647660,-151.0,0.00020721,2]
[334659762,1723410647670,-1943.78882922,0.00020721,2]
[334659763,1723410647680,-694.1882093,0.00020721,2]
[334659764,1723410647690,-11441.20228861,0.00020721,2]
[334659765,1723410647714,-1000.0,0.00020721,2]
[334659890,1723411630167,-300.0,0.00018145,2]
[334659891,1723411630190,-1886.96547501,0.00018146,2]
[334659892,1723411639149,-10248.25200645,0.00018146,2]
[334659893,1723411696428,273.37336231,9.9e-05,2]
[334659895,1723411712217,273.37336231,9.9e-05,2]
[334659896,1723411728662,273.37336231,9.9e-05,2]
[334659920,1723411832541,-9144.1468737,0.00018082,2]
[334659921,1723411832551,-176.953093,0.00018159,2]
[334659922,1723411832562,-215.3663713,0.00018163,2]
[334659923,1723411832571,-176.953093,0.00018632,2]
[334659924,1723411832580,-300.0,0.00018901,2]
[334659925,1723411832590,-393.668648,0.00018904,2]
[334659926,1723411832599,-2036.37880326,0.00018989,2]
[334659927,1723411832609,-3069.67001453,0.0001903,2]
[334659928,1723411832618,-212.58437332,0.00019046,2]
[334659929,1723411832627,-3000.0,0.000191,2]
[334659930,1723411832636,-1364.59246336,0.00019102,2]
[334659931,1723411832645,-176.953093,0.00019105,2]
[334659932,1723411832654,-3000.0,0.0001911,2]
[334659933,1723411832663,-3000.0,0.0001912,2]
[334659934,1723411832672,-3000.0,0.0001913,2]
[334659935,1723411832682,-277.43269753,0.00019139,2]
[334659936,1723411832691,-156.50755959,0.00019139,2]
[334659937,1723411832700,-3000.0,0.0001914,2]
[334659938,1723411832710,-3000.0,0.0001915,2]
[334659939,1723411832719,-3000.0,0.0001916,2]
[334659940,1723411832728,-279.61794842,0.00019167,2]
[334659941,1723411832738,-601.3570708,0.00019167,2]
[334659942,1723411832752,-1749.73472917,0.00019167,3]
[334659943,1723411832761,-932.99527997,0.00019167,2]
[334659944,1723411832770,-3000.0,0.0001917,2]
[334659945,1723411832779,-816.94684465,0.00019177,4]
[334659946,1723411832789,-2141.01768748,0.00019177,2]
[334659947,1723411832798,-160.061675,0.00019178,2]
[334659948,1723411832807,-3000.0,0.0001918,2]
[334659949,1723411832817,-1813.53705542,0.0001919,2]
[334659979,1723411838096,-277.43269753,0.00019102,2]
[334659981,1723411838106,-1186.46294458,0.0001919,2]
[334659983,1723411838115,-3000.0,0.000192,2]
[334659985,1723411838128,-203.12621248,0.00019209,2]
[334659987,1723411838137,-3000.0,0.0001921,2]
[334659989,1723411838146,-5850.0,0.0001922,2]
[334659990,1723411838156,-494.6780177,0.00019256,2]
[334659992,1723411838165,-154.7755785,0.00019256,2]
[334659993,1723411838175,-151.682,0.00019297,2]
[334659994,1723411838184,-517.052,0.00019297,2]
[334659995,1723411838194,-1413.0,0.00019297,2]
[334659996,1723411838203,-157.03315837,0.00019451,2]
[334659997,1723411838213,-246.90024575,0.00019451,2]
[334659998,1723411838222,-208.45077666,0.00019451,2]
[334659999,1723411838232,-1795.90411051,0.00019477,2]
[334660000,1723411838241,-612.61903877,0.00019764,2]
[334660001,1723411838252,-4329.51491883,0.0001988,11]
[334660002,1723411838262,-26222.861065,0.0001988,2]
[334660003,1723411838272,-270.25142163,0.00019899,2]
[334660004,1723411838281,-19604.7556423,0.00019989,2]
[334660005,1723411838290,-14398.51784461,0.00019999,2]
[334660006,1723411838299,-154.76012181,0.0002,2]
[334660007,1723411838309,-156.5036659,0.0002,2]
[334660008,1723411838319,-427.42147881,0.0002,2]
[334660009,1723411838328,-472.25848256,0.0002,2]
[334660010,1723411838337,-1392.94350918,0.0002,2]
[334660011,1723411838346,-294.37791673,0.0002,2]
[334660012,1723411838356,-336.48303043,0.0002,2]
[334660013,1723411838366,-336.48303043,0.0002,2]
[334660014,1723411838375,-151.0,0.0002006,2]
[334660015,1723411838385,-270.25142163,0.00020105,2]
[334660016,1723411838395,-309.52024362,0.0002028,2]
[334660017,1723411838405,-270.25142163,0.0002031,2]
[334660018,1723411838416,-151.0,0.00020324,2]
[334660019,1723411838431,-5321.67920991,0.00020391,2]
[334660020,1723411838442,-1000.0,0.00020452,2]
[334660021,1723411838452,-1000.0,0.00020469,2]
[334660022,1723411838463,-1000.04055915,0.00020481,2]
[334660023,1723411838472,-1000.0,0.00020503,2]
[334660024,1723411838481,-270.25142163,0.00020516,2]
[334660025,1723411838492,-1000.0,0.00020543,2]
[334660026,1723411838504,-154.3087748,0.00020545,2]
[334660027,1723411838513,-1000.0,0.00020587,2]
[334660028,1723411838522,-151.0,0.00020588,2]
[334660029,1723411838531,-151.0,0.00020588,2]
[334660030,1723411838543,-172.54829263,0.00020601,2]
[334660031,1723411838685,-1827.45170737,0.00020601,2]
[334660032,1723411838694,-1000.0,0.00020616,2]
[334660033,1723411838703,-204.82576244,0.0002067,2]
[334660034,1723411838849,2159.92,0.00012,2]
[334660035,1723411838874,786.31985885,0.00012,2]
[334660134,1723411858847,209.66371143,0.00012,2]
[334660137,1723411875708,598.91209084,0.00014545,2]
[334660138,1723411875919,431.42119605,0.00012,2]
[334660139,1723411875943,1158.93176464,0.00012,2]
[334660140,1723411878133,913.95595473,0.00014545,2]
[334660141,1723411878154,851.07764602,0.00014545,2]
[334660142,1723411879696,932.99527997,0.00014545,2]
[334660143,1723411881717,261.67788224,0.000165,2]
[334660144,1723411883823,85.65679659,0.00014545,7]
[334660145,1723411883858,183.99934814,0.00014545,7]
[334660146,1723411889925,208.45077666,0.00014545,2]
[334660147,1723411892605,494.6780177,0.00014545,2]
[334660150,1723411907153,494.6780177,0.00014545,2]
[334660155,1723411929706,884.84287342,0.00014545,2]
[334660156,1723411929732,48.15240655,0.00014545,2]
[334660245,1723412246365,-357.29883013,0.00016,2]
[334660246,1723412246393,-1394.37542323,0.00016309,2]
[334660247,1723412246418,-645.15952427,0.00016347,2]
[334660248,1723412246442,-989.95922516,0.00016347,2]
[334660249,1723412246466,-178.39529262,0.00016532,2]
[334660250,1723412246491,-300.0,0.00017018,2]
[334660251,1723412246516,-208.45077666,0.00017019,2]
[334660252,1723412246542,-208.45077666,0.00017019,2]
[334660253,1723412246569,-932.99527997,0.00017019,2]
[334660254,1723412246596,-277.43269753,0.00017019,2]
[334660255,1723412246623,-270.27916925,0.00017019,2]
[334660256,1723412246650,-309.52024362,0.00017019,2]
[334660257,1723412246676,-10840.89386525,0.0001763,2]
[334660258,1723412246700,-250.04869026,0.0001763,2]
[334660259,1723412246730,-2110.13641058,0.0001763,2]
[334660260,1723412246755,-123.60379481,0.0001763,2]
[334660267,1723412313243,3610.65532431,0.00014545,2]
[334660269,1723412374182,2110.71605462,0.00014545,2]
[334660270,1723412391801,1413.31414847,0.00014545,2]
[334660271,1723412398412,404.61321999,0.00014545,2]
[334660272,1723412454252,1298.33893655,0.00014545,2]
[334660273,1723412464178,352.49927671,0.00014545,2]
[334660274,1723412509798,1533.87121437,0.00014545,2]
[334660276,1723412832151,-928.71884202,0.00015744,2]
[334660277,1723412832172,-208.45077666,0.00015751,2]
[334660278,1723412832193,-247.11239451,0.00017389,2]
[334660279,1723412832215,-274.44831486,0.0001763,2]
[334660280,1723412832239,-284.61395141,0.0001763,2]
[334660281,1723412843107,-1718.16198626,0.0001763,2]
[334660282,1723412843129,-152.24260708,0.00018825,3]
[334660345,1723413032181,-157.09694705,0.00018773,2]
[334660348,1723413032193,-58.83019511,0.00018773,4]
[334660384,1723413038414,-816.94684465,0.00018696,3]
[334660385,1723413038424,-401.36542778,0.00018773,4]
[334660386,1723413038434,-373.985215,0.00018904,2]
[334660387,1723413038445,-154.76012181,0.00018976,2]
[334660388,1723413038454,-301.25996446,0.00018999,2]
[334660389,1723413038464,-1608.418536,0.000191,2]
[334660390,1723413038474,-932.99527997,0.00019155,2]
[334660391,1723413038484,-169.557785,0.00019178,2]
[334660392,1723413038494,-160.061675,0.00019178,2]
[334660393,1723413038504,-1413.0,0.00019464,2]
[334660394,1723413038514,-237.976,0.00019464,2]
[334660395,1723413038523,-150.0,0.00019464,2]
[334660396,1723413038533,-306.0,0.00019978,2]
[334660397,1723413038542,-300.0,0.00019999,2]
[334660398,1723413038552,-336.48303043,0.0002,2]
[334660399,1723413038562,-1392.94350918,0.0002,2]
[334660400,1723413038572,-294.37791673,0.0002,2]
[334660401,1723413038583,-472.25848256,0.0002,2]
[334660402,1723413038595,-154.76012181,0.0002,2]
[334660403,1723413038605,-156.5036659,0.0002,2]
[334660404,1723413038616,-427.42147881,0.0002,2]
[334660405,1723413038627,-1203.41498324,0.00020258,2]
[334660460,1723413040466,-3194.49790178,0.00020258,2]
[334660461,1723413040476,-4397.91288502,0.00020316,2]
[334660462,1723413040486,-1000.0,0.00020457,2]
[334660463,1723413040495,-1000.0,0.00020503,2]
[334660464,1723413040505,-519.6282897,0.00020545,2]
[334660465,1723413040514,-270.25142163,0.00020611,2]
[334660466,1723413040523,-160.0,0.00020644,3]
[334660467,1723413040532,-294.6834504,0.00020646,2]
[334660468,1723413040542,-294.6834504,0.00020646,2]
[334660469,1723413040551,-294.6834504,0.00020646,2]
[334660470,1723413040560,-294.6834504,0.00020646,2]
[334660471,1723413040569,-589.2501309,0.00020646,2]
[334660472,1723413040578,-734.0246952,0.00020646,2]
[334660473,1723413040587,-30.58649706,0.0002067,2]
[334660474,1723413040597,-259.88822289,0.00020697,2]
[334660488,1723413043500,-250.0,0.00019464,2]
[334660489,1723413043510,-267.9126531,0.00020646,2]
[334660490,1723413043519,-40.11177711,0.00020697,2]
[334660491,1723413043540,-150.112233,0.000207,2]
[334660492,1723413043551,-21776.1257827,0.00020701,2]
[334660493,1723413043560,-203.22,0.00020701,3]
[334660494,1723413043571,-21776.1257827,0.00020701,2]
[334660495,1723413043580,-196.34327403,0.0002071,2]
[334660496,1723413043590,-500.0,0.0002071,2]
[334660497,1723413043600,-587.52026932,0.0002071,2]
[334660498,1723413043610,-13073.22912531,0.00020711,3]
[334660523,1723413046414,-5440.71742289,0.00020711,3]
[334660549,1723413949124,-355.285954,0.00018904,2]
[334660550,1723413949148,-150.0,0.000191,2]
[334660551,1723413949169,-208.45077666,0.00019102,2]
[334660552,1723413949190,-301.01889679,0.00019153,2]
[334660553,1723413949214,-594.0018097,0.00019236,2]
[334660554,1723413949238,-177.824579,0.00019463,2]
[334660555,1723413949259,-195.15081228,0.00019468,2]
[334660556,1723413950107,-488.84018772,0.00019468,2]
[334660557,1723413950133,-1000.0,0.000197,2]
[334660558,1723413950155,-472.38095194,0.00019714,2]
[334660559,1723413950179,-177.824579,0.00019801,2]
[334660560,1723413950199,-150.0,0.00019845,2]
[334660561,1723413950221,-9426.24693844,0.00019999,2]
[334660562,1723413950242,-204.57126989,0.0002,2]
[334660563,1723413950262,-1392.94350918,0.0002,2]
[334660564,1723413950283,-177.824579,0.00020139,2]
[334660565,1723413950302,-1000.0,0.000202,2]
[334660566,1723413950323,-298.04027995,0.00020205,2]
[334660567,1723413950344,-1364.59246336,0.0002028,2]
[334660568,1723413950367,-177.824579,0.00020477,2]
[334660569,1723413950388,-1048.30761548,0.00020583,2]
[334660570,1723413950409,-2685.96126267,0.00020591,2]
[334660571,1723413950431,-271.90748789,0.00020598,2]
[334660572,1723413950451,-173.54705236,0.0002061,2]
[334660573,1723413950470,-173.54705232,0.00020638,2]
[334660574,1723413950492,-300.0,0.00020645,2]
[334660575,1723413950512,-207.3044688,0.00020646,2]
[334660576,1723413950532,-207.3044688,0.00020646,2]
[334660577,1723413950552,-207.3044688,0.00020646,2]
[334660578,1723413950572,-414.291316,0.00020646,2]
[334660579,1723413950593,-173.54705232,0.00020666,2]
[334660580,1723413950613,-29875.35650067,0.0002069,2]
[334660584,1723414028197,-316.0769934,0.00018999,2]
[334660585,1723414028218,-336.48303043,0.0002028,2]
[334660586,1723414028241,-154.76012181,0.0002028,2]
[334660587,1723414028261,-932.99527997,0.0002028,2]
[334660588,1723414028280,-255.69448528,0.0002028,4]
[334660589,1723414040149,-472.25848256,0.0002,2]
[334660590,1723414040182,-336.48303043,0.0002,2]
[334660591,1723414040205,-203.45863862,0.0002028,4]
[334660592,1723414040227,-300.0,0.00020689,2]
[334660593,1723414040250,-12010.83902879,0.0002069,2]
[334660594,1723414051134,-2156.92575925,0.0002069,2]
[334660595,1723414215954,207.238394,0.00014247,2]
[334660632,1723414232931,-239.6584177,0.00018904,2]
[334660636,1723414232943,-97.8632383,0.00018904,2]
[334660639,1723414232952,-300.0,0.00019999,2]
[334660642,1723414232962,-1856.61164438,0.0002,2]
[334660645,1723414232971,-294.14472771,0.0002,2]
[334660647,1723414232980,-347.66389362,0.0002,2]
[334660649,1723414232989,-154.76012181,0.0002,2]
[334660650,1723414232998,-2350.21610488,0.0002059,2]
[334660652,1723414233008,-173.54705232,0.00020614,2]
[334660654,1723414233017,-6196.19321698,0.0002069,2]
[334660697,1723414238642,-8302.70861842,0.0002069,2]
[334660719,1723414240427,-6463.02725422,0.0002069,2]
[334660720,1723414240436,-9152.44758587,0.0002069,2]
[334660723,1723414240448,-1344.1673955,0.0002069,2]
[334660724,1723414240458,-1627.2392472,0.0002069,2]
[334660726,1723414240467,-4185.35085903,0.0002069,2]
[334660728,1723414240477,-1093.49324984,0.0002069,2]
[334660730,1723414240486,-150.112233,0.000207,4]
[334660731,1723414240495,-465.3690476,0.000207,2]
[334660732,1723414240505,-150.112233,0.000207,4]
[334660733,1723414240514,-500.0,0.000207,6]
[334660734,1723414240524,-1000.0,0.000207,2]
[334660735,1723414240534,-8979.89573483,0.00020701,3]
[334660746,1723414243711,-29922.80564568,0.00020701,3]
[334660747,1723414243721,-193.196869,0.00020711,2]
[334660748,1723414243731,-1467.120107,0.00020711,2]
[334660749,1723414243743,-1467.120107,0.00020711,2]
[334660750,1723414243751,-277.717489,0.00020711,2]
[334660751,1723414243762,-151.0,0.00020711,2]
[334660752,1723414243771,-277.717489,0.00020711,2]
[334660753,1723414243781,-641.326548,0.00020711,2]
[334660754,1723414243790,-641.326548,0.00020711,2]
[334660755,1723414243800,-362.952332,0.00020711,2]
[334660756,1723414243810,-362.952332,0.00020711,2]
[334660757,1723414243819,-151.0,0.00020711,2]
[334660758,1723414243829,-226.8721,0.00020711,2]
[334660759,1723414243839,-226.8721,0.00020711,2]
[334660760,1723414243849,-1007.183791,0.00020711,2]
[334660761,1723414243859,-1007.183791,0.00020711,2]
[334660762,1723414243869,-151.0,0.00020711,2]
[334660763,1723414243883,-258.020343,0.00020711,2]
[334660764,1723414243893,-258.020343,0.00020711,2]
[334660765,1723414243902,-191.336696,0.00020711,2]
[334660766,1723414243912,-191.336696,0.00020711,2]
[334660767,1723414243922,-226.44489,0.00020711,2]
[334660768,1723414243931,-226.44489,0.00020711,2]
[334660769,1723414243940,-151.0,0.00020711,2]
[334660770,1723414243952,-1555.129656,0.00020711,2]
[334660771,1723414243962,-1555.129656,0.00020711,2]
[334660772,1723414243971,-32814.95059774,0.00020711,2]
[334660773,1723414243999,-26641.48470196,0.00020711,2]
[334660774,1723414244008,-300.0,0.00020714,2]
[334660775,1723414244017,-500.0,0.00020719,2]
[334660776,1723414244027,-261.26418852,0.00020719,2]
[334660777,1723414244036,-1830.75110952,0.0002072,11]
[334660785,1723414246649,-334.00634989,0.0002072,11]
[334660786,1723414246659,-150.01,0.0002072,2]
[334660787,1723414246668,-996.32133682,0.0002072,2]
[334660788,1723414263604,1021.14560884,0.00017269,2]
[334660789,1723414263635,526.93669181,0.00017269,2]
[334660790,1723414272654,165.73090826,0.00017269,2]
[334660791,1723414272778,1413.60510014,0.00018,2]
[334660792,1723414272800,1340.18240198,0.00018,2]
[334660793,1723414273844,266.46203032,0.00017269,2]
[334660794,1723414274427,340.60956939,0.00017269,2]
[334660795,1723414276032,156.12428899,0.00017269,2]
[334660796,1723414282308,47.93332126,0.00017269,2]
[334660797,1723414282333,126.62903693,0.00017269,2]
[334660799,1723414753472,174.655578,0.00014247,2]
[334660802,1723414822463,1022.58511355,0.00014247,2]
[334660806,1723415140145,-500.0,0.00017413,2]
[334660807,1723415140167,-500.0,0.00018329,2]
[334660808,1723415140192,-357.6752982,0.00018474,2]
[334660809,1723415140214,-349.522871,0.00018904,2]
[334660810,1723415140236,-411.54011054,0.00018921,2]
[334660812,1723415153105,-1372.6003471,0.00018781,2]
[334660813,1723415153126,-2973.56911519,0.00018921,2]
[334660815,1723415243097,-332.046727,0.00018904,2]
[334660816,1723415243118,-816.94684465,0.00018969,3]
[334660817,1723415243138,-816.94684465,0.00018969,3]
[334660818,1723415243161,-601.3570708,0.00018989,2]
[334660819,1723415243182,-367.65331658,0.00018999,2]
[334660820,1723415243204,-156.99277667,0.00018999,2]
[334660821,1723415243223,-250.0,0.00019041,2]
[334660822,1723415243244,-161.960897,0.00019178,2]
[334660823,1723415243265,-213.36842833,0.00019245,2]
[334660824,1723415243286,-932.99527997,0.00019256,2]
[334660825,1723415243306,-213.8986779,0.00019477,2]
[334660826,1723415243326,-300.0,0.00019675,2]
[334660827,1723415243350,-150.0,0.00019676,2]
[334660828,1723415243370,-507.0,0.00019676,2]
[334660829,1723415243390,-1413.0,0.00019676,2]
[334660830,1723415243411,-292.10451933,0.0002,2]
[334660831,1723415243431,-1495.15817868,0.0002,2]
[334660832,1723415245157,-132.08106852,0.0002,2]
[334660833,1723415245177,-2028.4959669,0.0002,2]
[334660939,1723415438764,-1412.0,0.00019676,2]
[334660940,1723415438775,-300.0,0.00019799,2]
[334660941,1723415438784,-12372.50506775,0.000198,2]
[334660942,1723415438821,-42.98515715,0.000198,2]
[334660943,1723415438940,-113.90431861,0.000198,2]
[334660954,1723415440854,-3271.79436503,0.000198,2]
[334660955,1723415440864,-2245.02273772,0.000199,2]
[334660956,1723415440873,-8468.11901447,0.0002,2]
[334660957,1723415440885,-294.37791673,0.0002,2]
[334660958,1723415440894,-222.78569548,0.0002,2]
[334660959,1723415440903,-1384.32767636,0.0002,2]
[334660960,1723415440911,-336.48303043,0.0002,2]
[334660961,1723415440921,-472.25848256,0.0002,2]
[334660962,1723415440931,-2946.23985885,0.0002,2]
[334660963,1723415440939,-4185.35085903,0.0002,2]
[334660964,1723415440948,-29351.62451339,0.0002,2]
[334660965,1723415440957,-1627.2392472,0.0002,2]
[334660966,1723415440967,-1627.2392472,0.0002,2]
[334660967,1723415440976,-3557.51418684,0.00020366,2]
[334660968,1723415440985,-1000.0,0.00020504,2]
[334660969,1723415440995,-1000.0,0.00020508,2]
[334660970,1723415441004,-381.3568563,0.00020575,2]
[334660971,1723415441014,-153.0,0.00020575,2]
[334660972,1723415441023,-153.0,0.00020575,2]
[334660973,1723415441032,-151.0,0.00020597,2]
[334660974,1723415441041,-151.0,0.00020597,2]
[334660975,1723415441050,-306.0,0.000206,2]
[334660976,1723415441059,-668.15615147,0.00020611,2]
[334660977,1723415441068,-668.15615145,0.00020639,2]
[334660978,1723415441078,-668.15615145,0.00020666,2]
[334660979,1723415441087,-160.0,0.0002067,3]
[334660980,1723415441098,-151.56653755,0.00020679,2]
[334660981,1723415441107,-16897.7967367,0.00020681,2]
[334660982,1723415441116,-500.0,0.0002069,2]
[334660983,1723415441126,-170.5493636,0.0002069,2]
[334660984,1723415441134,-26325.95018863,0.00020691,3]
[334660985,1723415442199,-390.88561701,0.00020691,3]
[334661037,1723415446580,-2668.96574565,0.00020691,3]
[334661038,1723415446613,-1737.76934967,0.00020691,3]
[334661039,1723415446630,-20543.59050738,0.00020691,3]
[334661045,1723415687858,166.456679,0.00014247,2]
[334661047,1723416169721,174.655578,0.00014247,2]
[334661049,1723416344156,-1326.05528531,0.00016159,2]
[334661050,1723416344176,-325.444391,0.00018904,2]
[334661051,1723416344198,-300.0,0.00019186,2]
[334661052,1723416344221,-1969.48429086,0.00019187,2]
[334661053,1723416349117,-2300.21589366,0.00019187,2]
[334661055,1723416426091,-4408.90333808,0.00019187,2]
[334661056,1723416426113,-868.72735537,0.00019256,4]
[334661057,1723416426134,-193.713204,0.00019268,2]
[334661058,1723416426155,-1776.2100166,0.00019451,2]
[334661059,1723416426175,-1590.35296069,0.00019477,2]
[334661060,1723416426198,-179.537189,0.00019528,2]
[334661061,1723416426220,-300.0,0.00019546,2]
[334661062,1723416426241,-932.99527997,0.00019547,2]
[334661063,1723416426263,-208.45077666,0.00019547,2]
[334661064,1723416426284,-1265.1256656,0.00019547,2]
[334661065,1723416426304,-1412.0,0.00019827,2]
[334661066,1723416426326,-150.46,0.00019827,2]
[334661067,1723416426346,-507.0,0.00019827,2]
[334661068,1723416426366,-156.69756504,0.00019999,2]
[334661069,1723416426388,-154.76012181,0.00019999,2]
[334661070,1723416426409,-4000.0,0.0002,2]
[334661071,1723416426593,-154.76012181,0.0002,2]
[334661072,1723416426614,-871.61586959,0.0002,2]
[334661073,1723416426635,-598.91209084,0.0002028,2]
[334661074,1723416426656,-277.43269753,0.0002028,2]
[334661075,1723416426676,-154.76012181,0.0002028,2]
[334661076,1723416426698,-1875.36869218,0.00020298,2]
[334661077,1723416434172,-932.99527997,0.00019477,2]
[334661078,1723416434198,-3069.8145462,0.00020298,2]
[334661079,1723416438122,-167.49779155,0.00020298,2]
[334661080,1723416438144,-0.85738275,0.00020384,2]
[334661081,1723416440118,-164.14544225,0.00020384,2]
[334661082,1723416440144,-306.0,0.00020482,2]
[334661083,1723416440166,-790.96254212,0.00020493,2]
[334661193,1723416639070,-309.172171,0.00018904,2]
[334661194,1723416639080,-161.960897,0.00019178,2]
[334661195,1723416639092,-209.66371143,0.00019477,2]
[334661196,1723416639103,-179.537189,0.00019661,2]
[334661197,1723416639115,-472.25848256,0.0002,2]
[334661198,1723416639125,-336.48303043,0.0002,2]
[334661199,1723416639135,-308.96031119,0.0002018,2]
[334661200,1723416639149,-494.6780177,0.0002028,2]
[334661201,1723416639159,-300.0,0.00020492,2]
[334661202,1723416639169,-209.03745788,0.00020493,2]
[334661203,1723416639179,-4185.35085903,0.00020493,2]
[334661204,1723416639189,-7396.09246494,0.00020493,2]
[334661205,1723416639339,-435.66488524,0.00020493,2]
[334661206,1723416639370,-2110.31667127,0.00020493,2]
[334661207,1723416639379,-1627.2392472,0.00020493,2]
[334661208,1723416639389,-516.97099816,0.00020547,7]
[334661209,1723416639399,-204.82576244,0.00020555,2]
[334661210,1723416639409,-406.10010244,0.00020611,2]
[334661211,1723416639420,-218.90539591,0.00020639,2]
[334661228,1723416643881,-187.19470653,0.00020639,2]
[334661229,1723416643890,-472.02886102,0.00020648,2]
[334661230,1723416643899,-406.10010244,0.00020666,2]
[334661231,1723416643909,-13298.24526214,0.00020691,2]
[334661232,1723416643948,-255.57954374,0.00020691,2]
[334661233,1723416643959,-2025.85273131,0.00020691,2]
[334661247,1723416646987,-691.02362734,0.00020691,2]
[334661256,1723417239230,169.069209,0.00014247,2]
[334661268,1723417642199,-1054.28366212,0.00016347,2]
[334661269,1723417642220,-255.69448528,0.00016532,4]
[334661270,1723417642242,-316.0769934,0.00016532,2]
[334661271,1723417642262,-269.65614473,0.00016532,7]
[334661272,1723417642282,-154.76012181,0.00017269,2]
[334661273,1723417642304,-166.162992,0.00018524,2]
[334661274,1723417642326,-308.606725,0.00018904,2]
[334661275,1723417642348,-250.0,0.00019186,2]
[334661276,1723417642370,-507.0,0.00019365,2]
[334661277,1723417642390,-777.47140485,0.00019365,2]
[334661278,1723417646191,-510.42257995,0.00019365,2]
[334661279,1723417647091,-124.1060152,0.00019365,2]
[334661280,1723417647112,-168.51227906,0.00019477,2]
[334661281,1723417653103,-86.30909285,0.00019477,2]
[334661282,1723417653124,-300.03788272,0.00019547,2]
[334661283,1723417653146,-494.6780177,0.00019547,2]
[334661284,1723417653167,-442.71117016,0.00019547,2]
[334661286,1723417749493,190.946986,0.00014247,2]
[334661287,1723417823803,1021.14560884,0.00017269,2]
[334661330,1723417831825,-293.176388,0.00018904,2]
[334661332,1723417831834,-125.71674281,0.00019458,2]
[334661341,1723417831913,-5861.4,0.00019458,2]
[334661410,1723417838018,-242.57343349,0.00019457,2]
[334661411,1723417838029,-1082.37872971,0.00019458,11]
[334661413,1723417838041,-2504.03261049,0.00019458,2]
[334661414,1723417838107,-1259.41545977,0.00019458,2]
[334661424,1723417840007,-778.77816215,0.00019458,2]
[334661445,1723417843066,-1246.72017249,0.00019458,2]
[334661463,1723417846176,-414.04574877,0.00019458,2]
[334661465,1723418281072,169.069209,0.00014247,2]
[334661526,1723418760231,190.946986,0.00014247,2]
[334661532,1723418838173,-500.0,0.00018329,2]
[334661533,1723418838195,-172.16580948,0.00018899,2]